[Event "GER-ch Youth-U12 2022"]
[Site "Willingen"]
[Date "2022.06.08"]
[Round "5.6"]
[White "Lu, Yunong Elias"]
[Black "Martin Fernandez, Rafael"]
[Result "1-0"]
[ECO "B01"]
[WhiteElo "1671"]
[BlackElo "1678"]
[Annotator "NA RC COMBH"]
[PlyCount "101"]
[EventDate "2022.06.05"]
[EventType "swiss"]
[EventRounds "9"]
[EventCountry "GER"]
[SourceTitle "playchess.com"]
[Source "ChessBase"]
[SourceQuality "1"]
[TimeControl "40/4500+30:900+30"]

1. e4 {[%emt 0:00:00]} d5 {[%emt 0:00:00]} 2. exd5 {[%emt 0:00:00]} Qxd5 {[%emt 0:00:00]} 3. Nf3 {[%emt 0:00:00]} Nf6 {[%emt 0:00:00]} 4. Be2 {[%emt 0:00:00]} Bf5 {[%emt 0:00:00]} 5. d4 {[%emt 0:00:00]} Nc6 {[%emt 0:00:00]} 6. c3 {[%emt 0:04:37]} O-O-O {[%emt 0:00:00]} 7. Qb3 {[%emt 0:09:49]} e6 {[%emt 0:00:00]} 8. Qxd5 {[%emt 0:04:49]} Nxd5 {[%emt 0:00:00]} 9. O-O {[%emt 0:03:46]} Bd6 {[%emt 0:01:06]} 10. g3 {[%emt 0:06:57]} h5 {[%emt 0:02:26]} 11. h4 {[%emt 0:02:23]} f6 {[%emt 0:04:04]} 12. Nbd2 {[%emt 0:03:40]} Rhg8 {[%emt 0:02:51]} 13. Nc4 {[%emt 0:05:16]} Be7 {[%emt 0:01:46]} 14. Ne3 {[%emt 0:03:28]} Nxe3 {[%emt 0:01:20]} 15. Bxe3 {[%emt 0:00:56]} g5 {[%emt 0:01:28]} 16. hxg5 {[%emt 0:12:13]} fxg5 {[%emt 0:00:31]} 17. Bb5 {[%emt 0:02:51]} Rd6 {[%emt 0:03:02]} 18. Bxc6 {[%emt 0:00:29]} Rxc6 {[%emt 0:00:04]} 19. Ne5 {[%emt 0:00:49]} Rd6 {[%emt 0:01:09]} 20. Rfe1 {[%emt 0:04:07]} Bf6 {[%emt 0:01:30]} 21. Rad1 {[%emt 0:00:54]} g4 {[%emt 0:02:23]} 22. Bf4 {[%emt 0:01:06]} h4 {[%emt 0:02:16]} 23. Rd2 {[%emt 0:01:58]} Rdd8 {[%emt 0:02:05]} 24. Nf7 {[%emt 0:01:47]} Rd7 {[%emt 0:01:14]} 25. Nh6 {[%emt 0:01:03]} Rh8 {[%emt 0:00:16]} 26. Nxf5 {[%emt 0:00:55]} exf5 {[%emt 0:00:07]} 27. Rde2 {[%emt 0:01:00]} Kd8 {[%emt 0:01:40]} 28. Re6 {[%emt 0:02:38]} Rf7 {[%emt 0:01:21]} 29. Rxf6 {[%emt 0:00:32]} Rxf6 {[%emt 0:00:19]} 30. Bg5 {[%emt 0:00:08]} Rhf8 {[%emt 0:02:49]} 31. Re6 {[%emt 0:00:51]} Kd7 {[%emt 0:00:22]} 32. Rxf6 {[%emt 0:00:17]} Rxf6 {[%emt 0:00:06]} 33. Bxf6 {[%emt 0:00:10]} h3 {[%emt 0:00:05]} 34. c4 {[%emt 0:01:57]} Ke6 {[%emt 0:00:30]} 35. Bd8 {[%emt 0:00:38]} c6 {[%emt 0:00:06]} 36. b4 {[%emt 0:01:23]} b5 {[%emt 0:01:13]} 37. cxb5 {[%emt 0:00:20]} cxb5 {[%emt 0:00:07]} 38. Bg5 {[%emt 0:01:22]} Kd5 {[%emt 0:00:30]} 39. Be3 {[%emt 0:00:25]} a6 {[%emt 0:00:57]} 40. f3 {[%emt 0:01:01]} Ke6 {[%emt 0:01:05]} 41. fxg4 {[%emt 0:15:22]} fxg4 {[%emt 0:15:07]} 42. Kf1 {[%emt 0:00:24]} Kd5 {[%emt 0:00:19]} 43. Bg1 {[%emt 0:01:57]} Ke4 {[%emt 0:00:04]} 44. Ke2 {[%emt 0:00:17]} Kd5 {[%emt 0:00:37]} 45. Kd3 {[%emt 0:00:12]} Ke6 {[%emt 0:00:35]} 46. Ke4 {[%emt 0:00:02]} Kf6 {[%emt 0:00:18]} 47. d5 {[%emt 0:00:04]} Ke7 {[%emt 0:00:07]} 48. Ke5 {[%emt 0:00:03]} Kd7 {[%emt 0:00:04]} 49. d6 {[%emt 0:00:04]} Kd8 {[%emt 0:00:04]} 50. Ke6 {[%emt 0:00:16]} Kc8 {[%emt 0:00:36]} 51. d7+ {[%emt 0:00:09]} 1-0

[Event "GER-ch Youth-U12 2022"]
[Site "Willingen"]
[Date "2022.06.08"]
[Round "5.7"]
[White "Riechenberg, Sebastian"]
[Black "Blodig, Vincent"]
[Result "0-1"]
[ECO "B40"]
[WhiteElo "1668"]
[BlackElo "1461"]
[Annotator "NA RC COMBH"]
[PlyCount "80"]
[EventDate "2022.06.05"]
[EventType "swiss"]
[EventRounds "9"]
[EventCountry "GER"]
[SourceTitle "playchess.com"]
[Source "ChessBase"]
[SourceQuality "1"]
[TimeControl "40/4500+30:900+30"]

1. e4 {[%emt 0:00:00]} c5 {[%emt 0:00:00]} 2. Nf3 {[%emt 0:00:00]} e6 {[%emt 0:00:00]} 3. d4 {[%emt 0:00:00]} cxd4 {[%emt 0:00:00]} 4. Nxd4 {[%emt 0:00:00]} Nf6 {[%emt 0:00:00]} 5. Bd3 {[%emt 0:00:00]} Nc6 {[%emt 0:00:00]} 6. Nxc6 {[%emt 0:00:00]} bxc6 {[%emt 0:00:00]} 7. O-O {[%emt 0:00:00]} d5 {[%emt 0:00:00]} 8. e5 {[%emt 0:03:08]} Nd7 {[%emt 0:00:00]} 9. Qe1 {[%emt 0:00:26]} f5 {[%emt 0:00:00]} 10. f4 {[%emt 0:05:12]} Be7 {[%emt 0:00:00]} 11. Rf3 {[%emt 0:01:05]} O-O {[%emt 0:00:49]} 12. Rh3 {[%emt 0:00:59]} Rf7 {[%emt 0:11:14]} 13. Qd1 {[%emt 0:07:06]} c5 {[%emt 0:07:16]} 14. g4 {[%emt 0:00:39]} g6 {[%emt 0:00:38]} 15. g5 {[%emt 0:06:31]} Bb7 {[%emt 0:03:42]} 16. Be2 {[%emt 0:01:15]} Nb6 {[%emt 0:00:58]} 17. Nd2 {[%emt 0:03:13]} c4 {[%emt 0:01:26]} 18. Nf3 {[%emt 0:00:55]} Na4 {[%emt 0:13:48]} 19. Nd4 {[%emt 0:01:32]} Qb6 {[%emt 0:00:44]} 20. b3 {[%emt 0:04:02]} Bc5 {[%emt 0:03:04]} 21. Be3 {[%emt 0:02:00]} Nc3 {[%emt 0:01:23]} 22. Qd2 {[%emt 0:00:12]} Ne4 {[%emt 0:02:38]} 23. Qd1 {[%emt 0:00:45]} Nc3 {[%emt 0:02:17]} 24. Qd2 {[%emt 0:00:05]} Nxe2+ {[%emt 0:00:38]} 25. Nxe2 {[%emt 0:00:04]} d4 {[%emt 0:00:55]} 26. Nxd4 {[%emt 0:01:28]} Bxd4 {[%emt 0:05:26]} 27. Bxd4 {[%emt 0:01:25]} Qc6 {[%emt 0:00:40]} 28. Re3 {[%emt 0:09:05]} Qh1+ {[%emt 0:01:00]} 29. Kf2 {[%emt 0:00:05]} Qxh2+ {[%emt 0:00:14]} 30. Ke1 {[%emt 0:00:53]} Qxf4 {[%emt 0:00:37]} 31. bxc4 {[%emt 0:00:42]} Rd7 {[%emt 0:04:26]} 32. c3 {[%emt 0:01:40]} Qxg5 {[%emt 0:02:11]} 33. Kd1 {[%emt 0:00:28]} f4 {[%emt 0:01:36]} 34. Re1 {[%emt 0:00:18]} Qg4+ {[%emt 0:00:13]} 35. Kc1 {[%emt 0:00:06]} f3 {[%emt 0:01:12]} 36. Qh6 {[%emt 0:00:24]} Rxd4 {[%emt 0:02:06]} 37. cxd4 {[%emt 0:00:32]} Qxd4 {[%emt 0:00:36]} 38. Rh1 {[%emt 0:03:11]} Qxa1+ {[%emt 0:00:24]} 39. Kd2 {[%emt 0:00:29]} Qd4+ {[%emt 0:00:17]} 40. Ke1 {[%emt 0:00:34]} f2+ {[%emt 0:00:15]} 0-1

[Event "GER-ch Youth-U12 2022"]
[Site "Willingen"]
[Date "2022.06.08"]
[Round "5.8"]
[White "Neuhoff, Laertes"]
[Black "Uyar, Levin"]
[Result "1-0"]
[ECO "E01"]
[WhiteElo "1990"]
[BlackElo "1306"]
[Annotator "TA"]
[PlyCount "83"]
[EventDate "2022.06.05"]
[EventType "swiss"]
[EventRounds "9"]
[EventCountry "GER"]
[SourceTitle "playchess.com"]
[Source "ChessBase"]
[SourceQuality "1"]
[TimeControl "40/4500+30:900+30"]

{[%evp 15,83,32,41,59,56,58,71,70,73,59,58,49,105,102,111,111,210,215,358,355,353,352,475,478,529,527,537,530,532,531,527,521,500,499,672,670,783,778,1039,771,804,719,1000,1000,967,979,922,879,836,826,1837,1546,1324,1298,5473,4063,29978,29972,29970,29968,29968,29968,29969,29968,29965,9239,29966,29967,4814,1418]} 1. d4 {[%emt 0:00:00]} Nf6 {[%emt 0:00:00]} 2. c4 {[%emt 0:00:00]} e6 {[%emt 0:00:00]} 3. g3 {[%emt 0:00:00]} d5 {[%emt 0:00:00]} 4. Bg2 {[%emt 0:00:00]} c6 {[%emt 0:00:00]} 5. Nf3 {[%emt 0:00:00][%cal Bg1f3,Bf3d2,Bd2e4][%mdl 32]} Bd6 {[%emt 0:00:00]} 6. O-O {[%emt 0:00:00]} Nbd7 {[%emt 0:00:00]} 7. Nc3 {[%emt 0:00:00]} O-O {[%emt 0:00:00]} 8. Nd2 {[%emt 0:03:45]} Re8 {[%emt 0:00:00] The main line 8...Re8 scores better than 8...Bc7.} 9. e4 {[%emt 0:06:46] E01: Catalan: Early deviations.} dxe4 {[%emt 0:00:00]} 10. Ndxe4 {[%emt 0:01:15]} Bc7 {[%emt 0:00:00]} 11. b3 {[%emt 0:03:55] White is better.} h6 {[%emt 0:12:04]} 12. Bb2 {[%emt 0:05:43]} Nxe4 {[%emt 0:13:27]} 13. Nxe4 {[%emt 0:00:50] [#]} e5 $146 {[%emt 0:16:50]} (13... f5 $14) ({Predecessor:} 13... Nf6 14. f4 Nxe4 15. Bxe4 Qe7 16. Qh5 Bb6 17. Rae1 Qf6 18. c5 Bd8 19. Rf2 Qe7 {1-0 (44) Kirk,E (2408)-Alizada,E England 2018}) 14. d5 $16 {[%emt 0:05:38] White is more active.} cxd5 {[%emt 0:02:30]} 15. cxd5 {[%emt 0:00:21][%cal Bc4d5,Bd5d6,Bd6c7][%mdl 32]} Nf6 {[%emt 0:01:44]} (15... Nf8 $16 16. Rc1 Bf5) 16. d6 $18 {[%emt 0:03:37]} Nxe4 {[%emt 0:25:43]} (16... Bb6 $142 17. Nxf6+ gxf6) 17. dxc7 {[%emt 0:00:53]} Qxd1 {[%emt 0:00:42]} 18. Raxd1 {[%emt 0:01:45]} Nc5 {[%emt 0:04:43]} 19. Rd8 {[%emt 0:03:40]} Bd7 {[%emt 0:01:36]} 20. Rxa8 {[%emt 0:01:35]} Rxa8 {[%emt 0:00:07]} 21. Ba3 {[%emt 0:00:30] This bishop pair is nice.} Ne6 {[%emt 0:02:07]} 22. Bxb7 {[%emt 0:00:15]} Nxc7 {[%emt 0:00:18]} 23. Bxa8 {[%emt 0:00:05]} Nxa8 {[%emt 0:00:06][%mdl 4096] Endgame KRB-KBN} 24. Rd1 {[%emt 0:00:24]} Nb6 {[%emt 0:01:12]} 25. Bc5 {[%emt 0:00:16]} Bf5 {[%emt 0:02:52]} 26. Bxb6 {[%emt 0:00:17]} axb6 {[%emt 0:00:03] KR-KB} 27. Rd6 {[%emt 0:00:09]} b5 {[%emt 0:00:49]} 28. Rd5 {[%emt 0:00:03]} b4 {[%emt 0:00:19]} 29. Rxe5 {[%emt 0:00:13]} Bb1 {[%emt 0:00:11]} 30. Rb5 {[%emt 0:00:07]} Bxa2 {[%emt 0:00:05]} 31. Rxb4 {[%emt 0:00:07] [#] Black must now prevent Rb8+.} Kf8 {[%emt 0:00:07]} 32. Rb7 {[%emt 0:00:07]} Bb1 {[%emt 0:00:20]} 33. Rc7 {[%emt 0:00:10] Threatens to win with b4.} Bd3 {[%emt 0:00:18]} 34. b4 {[%emt 0:00:03][%cal Bb3b4,Bb4b5,Bb5b6][%mdl 32] aiming for f4.} Ke8 {[%emt 0:00:33]} 35. f4 {[%emt 0:00:18] [#] Strongly threatening Kf2.} Bg6 {[%emt 0:00:27]} 36. Kf2 {[%emt 0:00:05]} Kd8 {[%emt 0:00:06]} 37. Rc1 {[%emt 0:00:06]} Be4 {[%emt 0:00:07]} 38. b5 {[%emt 0:00:05]} Kd7 {[%emt 0:00:18]} 39. b6 {[%emt 0:00:05]} Bc6 {[%emt 0:00:09]} 40. Ke3 {[%emt 0:00:05] White wants to mate with Kd4.} g6 {[%emt 0:00:24]} 41. Kd4 {[%emt 0:15:12]} f6 {[%emt 0:15:36]} 42. Kc5 {[%emt 0:00:10] Black got outplayed after the opening.  Weighted Error Value: White=0.06 (flawless) /Black=0.88} 1-0

[Event "GER-ch Youth-U12 2022"]
[Site "Willingen"]
[Date "2022.06.08"]
[Round "5.9"]
[White "Zhuikov, Edgard"]
[Black "Sydykov Bayastan"]
[Result "1/2-1/2"]
[ECO "C07"]
[WhiteElo "1892"]
[BlackElo "1477"]
[Annotator "NA RC COMBH"]
[PlyCount "135"]
[EventDate "2022.06.05"]
[EventType "swiss"]
[EventRounds "9"]
[EventCountry "GER"]
[SourceTitle "playchess.com"]
[Source "ChessBase"]
[SourceQuality "1"]
[TimeControl "40/4500+30:900+30"]

1. e4 {[%emt 0:00:00]} e6 {[%emt 0:00:00]} 2. d4 {[%emt 0:00:00]} d5 {[%emt 0:00:00]} 3. Nd2 {[%emt 0:00:00]} c5 {[%emt 0:00:00]} 4. exd5 {[%emt 0:00:00]} Qxd5 {[%emt 0:00:00]} 5. Ngf3 {[%emt 0:00:00]} cxd4 {[%emt 0:00:00]} 6. Bc4 {[%emt 0:00:00]} Qd6 {[%emt 0:00:00]} 7. O-O {[%emt 0:00:00]} Nf6 {[%emt 0:00:00]} 8. Nb3 {[%emt 0:00:00]} Nc6 {[%emt 0:00:00]} 9. Nbxd4 {[%emt 0:00:00]} Nxd4 {[%emt 0:00:00]} 10. Nxd4 {[%emt 0:00:00]} a6 {[%emt 0:00:00]} 11. Re1 {[%emt 0:00:00]} Be7 {[%emt 0:00:00]} 12. Bf1 {[%emt 0:00:00]} O-O {[%emt 0:00:00]} 13. c3 {[%emt 0:00:00]} Rd8 {[%emt 0:00:00]} 14. Qf3 {[%emt 0:00:00]} Nd5 {[%emt 0:03:01]} 15. Bd3 {[%emt 0:00:00]} Bf6 {[%emt 0:07:11]} 16. Qe4 {[%emt 0:00:00]} g6 {[%emt 0:00:44]} 17. Bh6 {[%emt 0:01:07]} e5 {[%emt 0:01:13]} 18. f4 {[%emt 0:01:09]} Nxf4 {[%emt 0:00:59]} 19. Bc2 {[%emt 0:00:50]} Ne6 {[%emt 0:04:20]} 20. Nxe6 {[%emt 0:04:27]} Bxe6 {[%emt 0:00:33]} 21. Rf1 {[%emt 0:01:00]} Bd5 {[%emt 0:02:31]} 22. Qe3 {[%emt 0:01:13]} Bg7 {[%emt 0:05:07]} 23. Bg5 {[%emt 0:00:52]} Rdc8 {[%emt 0:02:24]} 24. Rad1 {[%emt 0:02:57]} Rc5 {[%emt 0:17:38]} 25. b4 {[%emt 0:02:43]} Rc4 {[%emt 0:01:38]} 26. Bb3 {[%emt 0:01:07]} Qe6 {[%emt 0:07:57]} 27. Bxc4 {[%emt 0:00:09]} Bxc4 {[%emt 0:00:09]} 28. Rf2 {[%emt 0:00:17]} e4 {[%emt 0:06:56]} 29. Rfd2 {[%emt 0:00:36]} Bd3 {[%emt 0:00:15]} 30. Rxd3 {[%emt 0:02:04]} exd3 {[%emt 0:00:08]} 31. Qxe6 {[%emt 0:00:37]} fxe6 {[%emt 0:00:08]} 32. Rxd3 {[%emt 0:00:02]} b5 {[%emt 0:01:53]} 33. Bd2 {[%emt 0:00:32]} Bf6 {[%emt 0:01:13]} 34. Rd6 {[%emt 0:00:48]} Rd8 {[%emt 0:00:35]} 35. Rxe6 {[%emt 0:00:44]} Kf7 {[%emt 0:00:45]} 36. Re2 {[%emt 0:00:13]} Rd3 {[%emt 0:00:09]} 37. Kf2 {[%emt 0:01:17]} Bxc3 {[%emt 0:00:33]} 38. Bxc3 {[%emt 0:00:06]} Rxc3 {[%emt 0:00:05]} 39. g3 {[%emt 0:01:08]} g5 {[%emt 0:00:51]} 40. Kg2 {[%emt 0:00:46]} h5 {[%emt 0:01:13]} ({Black should try} 40... Kf6 $15) 41. Rf2+ {[%emt 0:15:19]} Ke6 {[%emt 0:15:19]} 42. h3 {[%emt 0:00:18]} Ke5 {[%emt 0:00:34]} 43. Re2+ {[%emt 0:00:10]} Kd4 {[%emt 0:00:28]} 44. Rf2 {[%emt 0:00:07]} Ke4 $17 {[%emt 0:05:48]} 45. Re2+ {[%emt 0:00:11]} Kd3 {[%emt 0:01:00]} 46. Re5 {[%emt 0:00:06]} g4 {[%emt 0:01:02]} 47. Rxh5 {[%emt 0:01:19]} Rc2+ {[%emt 0:01:46]} 48. Kf1 {[%emt 0:00:02]} gxh3 {[%emt 0:00:37]} 49. Rxh3 {[%emt 0:00:04]} Rxa2 {[%emt 0:00:16]} 50. g4+ {[%emt 0:00:02]} Ke4 {[%emt 0:00:08]} 51. g5 {[%emt 0:00:12]} Kf5 {[%emt 0:00:14]} 52. Rg3 {[%emt 0:00:19]} Kf4 {[%emt 0:00:49]} 53. Rh3 {[%emt 0:01:56]} Kxg5 {[%emt 0:00:08]} 54. Rf3 {[%emt 0:00:06]} Rb2 {[%emt 0:00:06]} 55. Ra3 {[%emt 0:00:08]} Kf4 {[%emt 0:00:12]} 56. Ke1 {[%emt 0:00:07]} Ke4 {[%emt 0:00:12]} 57. Kd1 {[%emt 0:00:05]} Kd4 {[%emt 0:00:07]} 58. Kc1 {[%emt 0:00:07]} Rxb4 {[%emt 0:02:10]} 59. Rxa6 {[%emt 0:00:06]} Kc3 {[%emt 0:00:37]} 60. Rc6+ {[%emt 0:00:10]} Rc4 {[%emt 0:00:58]} 61. Rh6 {[%emt 0:00:21]} Kb3+ {[%emt 0:00:43]} 62. Kb1 {[%emt 0:00:06]} b4 {[%emt 0:00:19]} 63. Rh1 {[%emt 0:00:04]} Rc3 {[%emt 0:00:24]} 64. Rg1 {[%emt 0:00:04]} Rf3 {[%emt 0:00:16]} 65. Rh1 {[%emt 0:00:04]} Ka3 {[%emt 0:00:26]} 66. Rg1 {[%emt 0:00:09]} Rf2 {[%emt 0:01:36]} 67. Rh1 {[%emt 0:00:05]} Rb2+ {[%emt 0:00:45]} 68. Ka1 {[%emt 0:00:04]} 1/2-1/2

[Event "GER-ch Youth-U12 2022"]
[Site "Willingen"]
[Date "2022.06.08"]
[Round "5.10"]
[White "Skembris, Simon Max"]
[Black "Malinowsky, Levi"]
[Result "1/2-1/2"]
[ECO "B90"]
[WhiteElo "1413"]
[BlackElo "1816"]
[Annotator "NA RC COMBH"]
[PlyCount "96"]
[EventDate "2022.06.05"]
[EventType "swiss"]
[EventRounds "9"]
[EventCountry "GER"]
[SourceTitle "playchess.com"]
[Source "ChessBase"]
[SourceQuality "1"]
[TimeControl "40/4500+30:900+30"]

1. e4 {[%emt 0:00:00]} c5 {[%emt 0:00:00]} 2. Nf3 {[%emt 0:00:00]} d6 {[%emt 0:00:00]} 3. d4 {[%emt 0:00:00]} cxd4 {[%emt 0:00:00]} 4. Nxd4 {[%emt 0:00:00]} Nf6 {[%emt 0:00:00]} 5. Nc3 {[%emt 0:00:00]} a6 {[%emt 0:00:00]} 6. Be3 {[%emt 0:00:00]} e5 {[%emt 0:00:00]} 7. Nb3 {[%emt 0:00:00]} Be6 {[%emt 0:00:00]} 8. h3 {[%emt 0:00:00]} Be7 {[%emt 0:00:00]} 9. f4 {[%emt 0:00:00]} exf4 {[%emt 0:00:00]} 10. Bxf4 {[%emt 0:00:00]} Nc6 {[%emt 0:00:00]} 11. Qd2 {[%emt 0:03:17]} Rc8 {[%emt 0:01:53]} 12. O-O-O {[%emt 0:07:12]} Nb4 {[%emt 0:18:53]} (12... Nh5 $1 $11 13. g3 (13. Bxd6 $2 Bg5 $19) 13... g5 14. Bxd6 Bxd6 15. Qxd6 Qxd6 16. Rxd6 Nxg3) 13. Kb1 {[%emt 0:04:45]} Qb6 {[%emt 0:14:42]} 14. Bxd6 {[%emt 0:12:16]} Rd8 {[%emt 0:03:18]} 15. e5 {[%emt 0:01:09]} Bxd6 {[%emt 0:00:34]} 16. exd6 {[%emt 0:01:48]} Nbd5 {[%emt 0:09:22]} 17. Nxd5 {[%emt 0:05:56]} Nxd5 {[%emt 0:01:08]} 18. Be2 $2 {[%emt 0:03:39]} (18. c4 $18 Nf6 19. c5) 18... O-O {[%emt 0:03:30]} (18... Rxd6 $14 19. g4 Rd7) 19. Bg4 {[%emt 0:08:44]} (19. c4 $18) 19... Ne3 {[%emt 0:07:05]} 20. Qd4 {[%emt 0:09:28]} Qxd4 {[%emt 0:02:38]} 21. Rxd4 {[%emt 0:00:16]} Bxg4 {[%emt 0:10:37]} 22. hxg4 {[%emt 0:00:42]} f5 {[%emt 0:00:20]} 23. Nc5 {[%emt 0:08:22]} Rf6 {[%emt 0:01:25]} 24. Nxb7 {[%emt 0:01:58]} Rd7 {[%emt 0:00:18]} 25. c4 {[%emt 0:03:12]} Nxc4 {[%emt 0:01:35]} 26. Rxc4 {[%emt 0:01:38]} Rxb7 {[%emt 0:00:13]} 27. Rc7 {[%emt 0:01:57]} Rb8 {[%emt 0:02:05]} 28. d7 {[%emt 0:02:00]} Rd8 {[%emt 0:00:40]} 29. Rc8 {[%emt 0:05:24]} Rff8 {[%emt 0:00:20]} 30. Rhc1 {[%emt 0:01:04]} Rxd7 {[%emt 0:00:27]} 31. gxf5 {[%emt 0:01:19]} Rd5 $16 {[%emt 0:01:17]} (31... Rd4 $1 $11) 32. g4 {[%emt 0:00:27]} h5 {[%emt 0:00:12]} 33. gxh5 {[%emt 0:01:11]} Rdxf5 {[%emt 0:00:11] [#]} 34. Rxf8+ {[%emt 0:00:29]} (34. R1c5 $1 $18 {and White stays clearly on top.}) 34... Kxf8 {[%emt 0:00:09]} 35. Rh1 {[%emt 0:01:15]} Rf6 {[%emt 0:00:34]} 36. Kc2 {[%emt 0:00:29]} Rh6 {[%emt 0:00:25] [#]} 37. Kb3 $2 {[%emt 0:00:46]} ({White must play} 37. Rf1+ $1 $18 Ke7 38. Rf5) 37... Ke7 {[%emt 0:00:12]} (37... g5 $1 $14 {deserves consideration.}) 38. Ka4 {[%emt 0:00:22]} Kd7 {[%emt 0:00:09]} (38... g6 $16) 39. Ka5 {[%emt 0:00:40]} Kc7 {[%emt 0:00:13]} 40. Rc1+ {[%emt 0:00:22]} Kb7 {[%emt 0:00:10]} 41. Rc5 {[%emt 0:15:09]} g6 {[%emt 0:15:11]} 42. hxg6 {[%emt 0:00:41]} Rxg6 {[%emt 0:00:09]} 43. b4 {[%emt 0:00:15]} Rh6 {[%emt 0:00:22]} 44. a4 {[%emt 0:00:59]} Rd6 {[%emt 0:00:26]} 45. Rh5 {[%emt 0:00:36]} Rd7 {[%emt 0:00:23]} 46. Rh6 {[%emt 0:00:46]} Rd5+ {[%emt 0:00:08]} 47. b5 {[%emt 0:00:06]} axb5 {[%emt 0:00:26]} 48. axb5 {[%emt 0:00:38]} Rd7 {[%emt 0:00:12]} 1/2-1/2

[Event "GER-ch Youth-U12 2022"]
[Site "Willingen"]
[Date "2022.06.08"]
[Round "5.11"]
[White "Nemitz, Alfred"]
[Black "Wylie, Leonard"]
[Result "1-0"]
[ECO "D91"]
[WhiteElo "1611"]
[BlackElo "1733"]
[Annotator "NA RC COMBH"]
[PlyCount "87"]
[EventDate "2022.06.05"]
[EventType "swiss"]
[EventRounds "9"]
[EventCountry "GER"]
[SourceTitle "playchess.com"]
[Source "ChessBase"]
[SourceQuality "1"]
[TimeControl "40/4500+30:900+30"]

1. d4 {[%emt 0:00:00]} Nf6 {[%emt 0:00:00]} 2. c4 {[%emt 0:00:00]} g6 {[%emt 0:00:00]} 3. Nc3 {[%emt 0:00:00]} d5 {[%emt 0:00:00]} 4. Nf3 {[%emt 0:00:00]} Bg7 {[%emt 0:00:00]} 5. Bg5 {[%emt 0:00:00]} Ne4 {[%emt 0:00:00]} 6. cxd5 {[%emt 0:00:00]} Nxc3 {[%emt 0:00:00]} 7. bxc3 {[%emt 0:00:00]} Qxd5 {[%emt 0:00:00]} 8. e3 {[%emt 0:00:00]} Bg4 {[%emt 0:00:00]} 9. Be2 {[%emt 0:08:58]} c5 {[%emt 0:00:00]} 10. Qb3 {[%emt 0:04:52]} Qxb3 {[%emt 0:00:00]} 11. axb3 {[%emt 0:00:14]} Nc6 {[%emt 0:00:00]} 12. Rc1 {[%emt 0:02:22]} cxd4 {[%emt 0:00:45]} 13. exd4 {[%emt 0:02:12]} O-O {[%emt 0:04:42]} 14. O-O {[%emt 0:01:14]} Rac8 {[%emt 0:03:23]} 15. Rfd1 {[%emt 0:03:16]} e5 {[%emt 0:01:10]} 16. d5 {[%emt 0:08:46]} e4 {[%emt 0:05:03]} 17. dxc6 {[%emt 0:02:16]} exf3 {[%emt 0:02:19]} 18. gxf3 {[%emt 0:00:46]} Be6 {[%emt 0:00:53]} 19. cxb7 {[%emt 0:00:17]} Rb8 {[%emt 0:05:00]} 20. Ba6 {[%emt 0:01:44]} Be5 {[%emt 0:00:25]} 21. Be3 {[%emt 0:00:57]} Bxb3 {[%emt 0:02:10]} 22. Rd3 {[%emt 0:06:50]} Rbd8 {[%emt 0:03:51]} 23. Rxd8 {[%emt 0:01:55]} Rxd8 {[%emt 0:00:32]} 24. Bxa7 {[%emt 0:02:17]} Bb8 {[%emt 0:01:29]} 25. Bxb8 {[%emt 0:00:21]} Rxb8 {[%emt 0:00:11]} 26. c4 {[%emt 0:00:15]} Ba4 {[%emt 0:01:07]} 27. c5 {[%emt 0:00:09]} Bc6 {[%emt 0:00:08]} 28. Rb1 {[%emt 0:00:38]} Bxf3 {[%emt 0:00:32]} 29. Rb6 {[%emt 0:00:02]} Kf8 {[%emt 0:03:41]} 30. c6 {[%emt 0:00:11]} Bxc6 {[%emt 0:00:10]} 31. Rxc6 {[%emt 0:00:07]} Ke7 {[%emt 0:00:10]} 32. Rc8 {[%emt 0:00:06]} Rxb7 {[%emt 0:00:10]} 33. Bxb7 {[%emt 0:00:07]} f5 {[%emt 0:00:05]} 34. Rc7+ {[%emt 0:00:05]} Kf8 {[%emt 0:00:05]} 35. Rxh7 {[%emt 0:00:06]} Kg8 {[%emt 0:00:05]} 36. Rc7 {[%emt 0:00:08]} f4 {[%emt 0:00:09]} 37. Kg2 {[%emt 0:00:06]} g5 {[%emt 0:00:04]} 38. Kf3 {[%emt 0:00:03]} g4+ {[%emt 0:00:07]} 39. Kxf4 {[%emt 0:00:12]} g3 {[%emt 0:00:09]} 40. hxg3 {[%emt 0:00:05]} Kh8 {[%emt 0:00:11]} 41. Kg5 {[%emt 0:15:05]} Kg8 {[%emt 0:15:05]} 42. Kf6 {[%emt 0:00:04]} Kh8 {[%emt 0:00:15]} 43. Be4 {[%emt 0:00:05]} Kg8 {[%emt 0:00:13]} 44. Rc8# {[%emt 0:00:01]} 1-0